bitfinex/quotes_BTCUSD_20220105
["timestamp","ask_amount","ask_price","bid_price","bid_amount"]
[1641355991663,0.33631561,46475.0,46473.0,0.118629]
[1641355991863,0.31731636,46477.0,46473.0,0.118629]
[1641355991864,0.053816,46477.0,46474.0,0.053814]
[1641355992065,0.0001,46478.0,46475.0,0.053814]
[1641355993065,0.053914,46478.0,46475.0,0.053814]
[1641355993265,0.354949,46477.0,46475.0,0.053814]
[1641355993666,0.354949,46477.0,46475.0,0.063814]
[1641355993866,0.354949,46477.0,46475.0,0.117629]
[1641355995317,0.354949,46477.0,46475.0,0.107629]
[1641355995716,0.354949,46477.0,46475.0,0.009]
[1641355996017,1.73546432,46476.0,46475.0,0.009]
[1641355996214,0.556969,46476.0,46475.0,0.0001]
[1641355996614,0.82546432,46476.0,46475.0,0.0001]
[1641355996814,0.0538293,46474.0,46470.0,6e-05]
[1641355997015,0.69166324,46472.0,46470.0,6e-05]
[1641355997214,0.403149,46471.0,46470.0,6e-05]
[1641355997619,0.412149,46471.0,46470.0,0.01106]
[1641355998015,0.512149,46471.0,46470.0,0.011]
[1641355998214,0.69855933,46471.0,46470.0,0.011]
[1641355999065,0.68955933,46471.0,46465.0,0.01238858]
[1641355999264,0.053823,46470.0,46466.0,0.107646]
[1641355999465,0.403149,46469.0,46466.0,0.053823]
[1641355999666,0.25725004,46468.0,46466.0,0.053823]
[1641356000065,0.2452722,46468.0,46466.0,0.053823]
[1641356000266,0.0482,46469.0,46466.0,0.053823]
[1641356000866,0.0482,46469.0,46467.0,0.053823]
[1641356001866,0.0582,46469.0,46467.0,0.067823]
[1641356002269,0.0582,46469.0,46467.0,0.06736353]
[1641356002933,0.0482,46469.0,46467.0,0.05336353]
[1641356003331,0.51698117,46475.0,46470.0,0.053819]
[1641356003531,0.51698117,46475.0,46471.0,0.053816]
[1641356003532,0.45746527,46475.0,46471.0,0.053816]
[1641356003731,0.354949,46474.0,46471.0,0.053816]
[1641356004130,0.60026931,46474.0,46471.0,0.053816]
[1641356004332,0.88985822,46474.0,46471.0,0.053816]
[1641356004731,0.64571885,46474.0,46471.0,0.053816]
[1641356005031,0.64571885,46474.0,46472.0,0.053817]
[1641356005431,0.10249782,46475.0,46472.0,0.053817]
[1641356005638,0.01,46474.0,46472.0,0.062817]
[1641356005831,0.01,46474.0,46473.0,0.053818]
[1641356006583,0.364949,46474.0,46473.0,0.053818]
[1641356007582,0.354949,46474.0,46473.0,0.053818]
[1641356007783,0.373949,46474.0,46473.0,0.058818]
[1641356008481,0.373949,46474.0,46473.0,0.05812049]
[1641356008983,0.60592963,46474.0,46472.0,0.053817]
[1641356009181,0.25062077,46473.0,46472.0,0.053817]
[1641356009382,0.60556977,46473.0,46472.0,0.053817]
[1641356009581,0.65376977,46473.0,46472.0,0.053817]
[1641356009780,0.66376977,46473.0,46472.0,0.055817]
[1641356010618,0.66166977,46473.0,46472.0,0.055817]
[1641356011018,0.65166977,46473.0,46472.0,0.053817]
[1641356011221,0.403149,46473.0,46472.0,0.053817]
[1641356011619,0.64978746,46473.0,46472.0,0.065817]
[1641356011820,0.65578746,46473.0,46472.0,0.012]
[1641356012925,0.409149,46473.0,46472.0,0.012]
[1641356013225,0.403149,46473.0,46471.0,0.053821]
[1641356013427,0.354949,46472.0,46471.0,0.053821]
[1641356013624,0.0482,46472.0,46471.0,0.086821]
[1641356014087,0.0502,46472.0,46471.0,0.086821]
[1641356014887,0.0502,46472.0,46471.0,0.053821]
[1641356015587,0.002,46472.0,46471.0,0.053821]
[1641356015788,0.007,46472.0,46471.0,0.071821]
[1641356017393,0.007,46472.0,46471.0,0.17302892]
[1641356017593,0.002,46472.0,46471.0,0.54255792]
[1641356017818,0.002,46472.0,46471.0,0.55655792]
[1641356018020,0.002,46472.0,46471.0,1.79655792]
[1641356018417,0.002,46472.0,46471.0,2.09005792]
[1641356018817,0.002,46472.0,46471.0,2.05747792]
[1641356019017,0.002,46472.0,46471.0,2.04347792]
[1641356019220,0.0001,46478.0,46471.0,2.04353792]
[1641356019418,0.0001,46478.0,46476.0,0.15127539]
[1641356019618,0.0001,46478.0,46477.0,1.544898]
[1641356021666,0.0001,46478.0,46477.0,1.55696346]
[1641356022469,0.004,46479.0,46478.0,1.673793]
[1641356022667,0.004,46479.0,46478.0,1.949056]
[1641356023067,0.00048076,46480.0,46479.0,0.15124766]
[1641356023266,0.00048076,46480.0,46479.0,1.9448709]
[1641356023467,0.00048076,46480.0,46479.0,1.9948709]
[1641356023667,0.00048076,46480.0,46479.0,2.0128709]
[1641356024268,0.00048076,46480.0,46479.0,1.76412866]
[1641356025071,0.00048076,46480.0,46479.0,1.74612866]
[1641356025715,0.00048076,46480.0,46479.0,1.76312866]
[1641356027118,0.00048076,46480.0,46479.0,1.74612866]
[1641356027720,0.00035142,46481.0,46479.0,1.78112866]
[1641356027921,0.00035142,46481.0,46480.0,0.27525]
[1641356029788,0.00035142,46481.0,46480.0,0.29725]
[1641356031191,0.00035142,46481.0,46480.0,0.27525]
[1641356031795,0.00035142,46481.0,46480.0,0.30625]
[1641356032392,0.00035142,46481.0,46480.0,0.031]
[1641356033024,0.00035142,46481.0,46479.0,6e-05]
[1641356033224,0.61552412,46480.0,46479.0,6e-05]
[1641356033825,0.62552412,46480.0,46479.0,0.024]
[1641356034626,0.62226679,46480.0,46479.0,0.024]
[1641356035026,0.61226679,46480.0,46478.0,0.0538]
[1641356035227,0.05415942,46481.0,46478.0,0.0538]
[1641356035428,0.30600952,46481.0,46478.0,0.0538]
[1641356035727,0.34785599,46479.0,46478.0,0.034]
[1641356035927,0.40166699,46479.0,46478.0,0.034]
[1641356036971,0.40166699,46479.0,46477.0,0.211408]
[1641356037367,0.053811,46479.0,46477.0,0.211408]
[1641356037669,0.05463733,46481.0,46477.0,0.211408]
[1641356037867,0.009,46479.0,46477.0,0.250408]
[1641356038870,0.009,46479.0,46478.0,0.35481]
[1641356039069,0.053809,46480.0,46478.0,0.35481]
[1641356039271,0.053809,46480.0,46477.0,0.26521523]
[1641356039474,0.053809,46480.0,46477.0,0.211408]
[1641356039871,0.053809,46480.0,46477.0,0.231408]
[1641356040072,0.053809,46480.0,46478.0,0.05380633]
[1641356040541,0.3175056,46484.0,46478.0,0.05380633]
[1641356040542,0.0001,46490.0,46480.0,1.24]
[1641356040743,0.0001,46490.0,46484.0,0.35606289]
[1641356040940,0.0001,46490.0,46485.0,0.280313]
[1641356041141,0.0001,46490.0,46485.0,1.620313]
[1641356041343,0.0001,46490.0,46486.0,0.280305]
[1641356041538,0.0001,46490.0,46487.0,0.053786]
[1641356041740,0.0001,46491.0,46489.0,1.14]
[1641356041939,0.0001,46491.0,46490.0,0.280279]
[1641356043240,0.0002171,46493.0,46490.0,0.51879904]
[1641356043441,0.0002171,46493.0,46490.0,0.28151451]
[1641356043640,0.0002171,46493.0,46490.0,0.52026991]
[1641356043840,0.0002171,46493.0,46490.0,0.29251451]
[1641356044968,0.0002171,46493.0,46490.0,0.4000872]
[1641356045168,0.0002171,46493.0,46490.0,0.3890872]
[1641356045169,0.00068851,46493.0,46490.0,0.3890872]
[1641356045572,0.00068851,46493.0,46489.0,0.21135974]
[1641356045573,0.0482,46491.0,46489.0,0.107573]
[1641356045770,0.0482,46491.0,46490.0,0.01]
[1641356046670,0.31849081,46491.0,46490.0,0.01]
[1641356047071,0.31849081,46491.0,46489.0,0.107573]
[1641356047724,0.0482,46491.0,46489.0,0.107573]
[1641356047922,0.02326463,46491.0,46489.0,0.167573]
[1641356048123,0.02326463,46491.0,46489.0,0.22136679]
[1641356048522,0.02326463,46491.0,46489.0,0.167573]
[1641356048722,0.01826463,46491.0,46489.0,0.167633]
[1641356048922,0.01826463,46491.0,46489.0,0.117633]
[1641356049122,0.01826463,46491.0,46489.0,0.107633]
[1641356049524,0.28749165,46490.0,46489.0,0.053847]
[1641356049828,0.33569165,46490.0,46489.0,0.053847]
[1641356050226,0.0482,46490.0,46489.0,0.053847]
[1641356051869,0.0482,46490.0,46489.0,0.061847]
[1641356053169,0.0482,46490.0,46489.0,0.053847]
[1641356053972,0.0482,46490.0,46489.0,0.416657]
[1641356054371,0.0482,46490.0,46489.0,0.061847]
[1641356055236,0.0482,46490.0,46489.0,0.053847]
[1641356055736,0.0432,46490.0,46489.0,0.053847]
[1641356055936,0.0432,46490.0,46489.0,0.059847]
[1641356056739,0.00257441,46492.0,46489.0,0.06105984]
[1641356056937,0.00257441,46492.0,46490.0,0.35481]
[1641356057741,0.0021,46492.0,46490.0,0.35481]
[1641356057941,0.0021,46492.0,46490.0,0.36581]
[1641356058971,0.0021,46492.0,46490.0,0.41959832]
[1641356059171,0.0021,46492.0,46490.0,0.40859832]
[1641356059571,0.0021,46492.0,46490.0,0.05378832]
[1641356059970,0.0021,46492.0,46490.0,0.06578832]
[1641356060571,0.0021,46492.0,46490.0,0.012]
[1641356061171,0.0021,46492.0,46489.0,0.15884884]
[1641356061370,0.053795,46491.0,46489.0,0.15884884]
[1641356061570,0.0021,46492.0,46489.0,0.15884884]
[1641356061971,0.0021,46492.0,46489.0,0.22564156]
[1641356063224,0.053795,46491.0,46489.0,0.21264156]
[1641356064125,0.053794,46491.0,46489.0,0.22464156]
[1641356064526,0.053794,46491.0,46489.0,0.17084884]
[1641356065125,0.053794,46491.0,46489.0,0.15884884]
[1641356065526,0.053794,46491.0,46490.0,0.35481]
[1641356065730,0.0021,46492.0,46490.0,0.35481]
[1641356065929,0.0021,46492.0,46489.0,0.17084884]
[1641356066769,0.053796,46491.0,46490.0,0.05379194]
[1641356067572,0.053796,46491.0,46489.0,0.15884884]
[1641356067975,0.053796,46491.0,46490.0,0.012]
[1641356068371,0.053796,46491.0,46490.0,0.36681]
[1641356068571,0.0021,46492.0,46490.0,0.36681]
[1641356068973,0.0021,46492.0,46490.0,0.012]
[1641356069574,0.055893,46492.0,46490.0,0.012]
[1641356069773,0.055893,46492.0,46489.0,0.21264084]
[1641356069974,0.055893,46492.0,46490.0,0.011]
[1641356071224,0.055893,46492.0,46489.0,0.10884884]
[1641356071425,0.053794,46491.0,46489.0,0.10884884]
[1641356071925,0.053794,46491.0,46490.0,0.35481]
[1641356072125,0.0021,46492.0,46490.0,0.35481]
[1641356073023,0.0021,46492.0,46491.0,0.35481]
[1641356073423,0.0021,46492.0,46489.0,0.16264128]
[1641356073626,0.053794,46491.0,46489.0,0.16264128]
[1641356074077,0.053794,46491.0,46490.0,6e-05]
[1641356075974,0.053794,46491.0,46490.0,0.011]
[1641356076378,0.0041,46499.0,46498.0,1.49872046]
[1641356076596,0.0483,46501.0,46499.0,0.87]
[1641356076597,0.0001,46501.0,46499.0,0.87]
[1641356076781,0.0001,46501.0,46499.0,1.54027144]
[1641356076977,0.0001,46501.0,46499.0,1.64027144]
[1641356077177,0.00047153,46502.0,46499.0,1.572949]
[1641356077378,0.00047153,46502.0,46501.0,2.200096]
[1641356077577,0.00047153,46502.0,46501.0,2.39949733]
[1641356077830,0.34568709,46515.0,46506.0,0.053766]
[1641356078032,0.34568709,46515.0,46507.0,0.404686]
[1641356078828,0.34568709,46515.0,46507.0,0.458456]
[1641356078829,0.999,46509.0,46507.0,0.458456]
[1641356079030,0.999,46509.0,46508.0,0.20125913]
[1641356079228,0.999,46509.0,46508.0,0.48130413]
[1641356080030,0.999,46509.0,46508.0,0.49830413]
[1641356080231,0.999,46509.0,46508.0,0.55207013]
[1641356080432,0.56889,46509.0,46508.0,0.55207013]
[1641356080934,0.138765,46509.0,46508.0,0.55207013]
[1641356081131,0.138765,46509.0,46508.0,0.53507013]
[1641356081331,0.138765,46509.0,46508.0,0.7751878]
[1641356081578,0.0010526,46516.0,46512.0,0.10752989]
[1641356081777,0.0010526,46516.0,46513.0,0.354638]
[1641356082779,0.0010526,46516.0,46514.0,0.053765]
[1641356082981,0.0010526,46516.0,46515.0,0.279996]
[1641356083979,0.0010526,46516.0,46515.0,0.291996]
[1641356084982,0.0010526,46516.0,46515.0,0.012]
[1641356085229,0.0010526,46516.0,46514.0,0.10752955]
[1641356085428,0.0010526,46516.0,46514.0,0.37826741]
[1641356085628,0.0010526,46516.0,46515.0,0.35607516]
[1641356086830,0.0010526,46516.0,46515.0,0.00126516]
[1641356087930,0.0010526,46516.0,46515.0,0.01426516]
[1641356088974,0.00113279,46516.0,46515.0,0.01426516]
[1641356089177,0.00113279,46516.0,46515.0,0.00126516]
[1641356089976,0.00113279,46516.0,46515.0,0.01426516]
[1641356091285,0.00113279,46516.0,46515.0,0.00126516]
[1641356092081,0.00113279,46516.0,46515.0,0.01426516]
[1641356093326,0.00113279,46516.0,46515.0,0.35607516]
[1641356094023,0.00113279,46516.0,46515.0,0.36907516]
[1641356095024,0.00113279,46516.0,46515.0,0.33907516]
[1641356095223,0.00113279,46516.0,46515.0,0.32607516]
[1641356096024,0.00113279,46516.0,46515.0,0.33907516]
[1641356097879,0.00113279,46516.0,46515.0,0.32607516]
[1641356098079,0.00113279,46516.0,46515.0,0.38907516]
[1641356098278,0.004,46519.0,46515.0,0.063]
[1641356098279,0.00013279,46519.0,46515.0,0.063]
[1641356098479,0.00013279,46519.0,46516.0,0.16129428]
[1641356098679,0.00013279,46519.0,46516.0,0.15829428]
[1641356098880,0.00013279,46519.0,46517.0,0.047]
[1641356099279,0.00020779,46519.0,46517.0,0.044]
[1641356099481,0.00020779,46519.0,46517.0,0.041]
[1641356099680,0.00020779,46519.0,46516.0,0.10253]
[1641356099880,0.00020779,46519.0,46516.0,0.15329478]
[1641356100086,0.00020779,46519.0,46518.0,0.0012992]
[1641356100325,0.00020779,46519.0,46518.0,1.18110718]
[1641356100525,0.00020779,46519.0,46518.0,1.17940638]
[1641356101328,0.00020779,46519.0,46518.0,1.23064346]
[1641356101730,0.00020779,46519.0,46518.0,1.18064346]
[1641356102025,0.00020779,46519.0,46518.0,1.18964346]
[1641356102227,0.00020779,46519.0,46518.0,0.92139808]
[1641356103228,0.00020779,46519.0,46518.0,0.91239808]
[1641356104075,0.00020779,46519.0,46518.0,0.92339808]
[1641356104675,0.00020779,46519.0,46518.0,0.26339808]
[1641356104876,0.00020779,46519.0,46518.0,0.262161]
[1641356105275,0.00020779,46519.0,46518.0,0.251161]
[1641356105476,0.00020779,46519.0,46518.0,0.691161]
[1641356105676,0.00020779,46519.0,46518.0,0.44]
[1641356106077,0.00020779,46519.0,46518.0,0.012]
[1641356106677,0.00020779,46519.0,46518.0,0.01]
[1641356107278,0.00020779,46519.0,46516.0,0.09953]
[1641356107928,0.00020779,46519.0,46516.0,0.11253]
[1641356109231,0.00020779,46519.0,46516.0,0.09953]
[1641356109434,0.00020779,46519.0,46518.0,0.00114337]
[1641356109435,0.0013947,46519.0,46518.0,0.00114337]
[1641356109631,0.0013947,46519.0,46518.0,0.00228674]
[1641356110031,0.0013947,46519.0,46518.0,0.01328674]
[1641356110233,0.0013947,46519.0,46518.0,0.01398942]
[1641356110433,0.0013947,46519.0,46518.0,0.54398942]
[1641356111336,0.0013947,46519.0,46518.0,0.53298942]
[1641356111981,0.0013947,46519.0,46518.0,0.54498942]
[1641356113279,0.0013947,46519.0,46518.0,0.53298942]
[1641356114080,0.0013947,46519.0,46518.0,0.54498942]
[1641356114279,0.0013947,46519.0,46518.0,0.54504942]
[1641356114484,0.0013947,46519.0,46518.0,0.01504942]
[1641356115333,0.0495947,46519.0,46518.0,0.00304942]
[1641356115532,0.4042977,46519.0,46518.0,0.00304942]
[1641356115834,0.82397188,46519.0,46518.0,0.00304942]
[1641356116032,0.82397188,46519.0,46505.0,0.00124148]
[1641356116033,1.59071518,46519.0,46505.0,0.00124148]
[1641356116234,0.053783,46512.0,46498.0,0.04872046]
[1641356116433,0.69317381,46502.0,46499.0,0.053785]
[1641356116732,0.69317381,46502.0,46498.0,0.04872046]
[1641356117235,0.74696481,46502.0,46498.0,0.04872046]
[1641356117632,0.43436079,46502.0,46498.0,0.04872046]
[1641356117833,0.053791,46502.0,46498.0,0.04872046]
[1641356118031,0.053791,46502.0,46501.0,0.02438737]
[1641356118231,0.053791,46502.0,46501.0,0.012]
[1641356118432,0.05424704,46504.0,46501.0,0.012]
[1641356118631,0.0482,46503.0,46501.0,0.012]
[1641356118834,0.24819241,46502.0,46501.0,0.065781]
[1641356119081,0.24819241,46502.0,46501.0,0.012]
[1641356119280,0.24819241,46502.0,46498.0,0.10250346]
[1641356119886,0.24819241,46502.0,46499.0,0.053784]
[1641356120083,0.05424604,46504.0,46499.0,0.053784]
[1641356120884,0.00046504,46504.0,46500.0,0.053783]
[1641356121085,0.00046504,46504.0,46501.0,0.05378]
[1641356121284,0.05424604,46504.0,46501.0,0.05378]
[1641356121885,0.00046504,46504.0,46501.0,0.05378]
[1641356122085,0.02546504,46504.0,46501.0,0.117559]
[1641356122286,0.02546504,46504.0,46502.0,0.354703]
[1641356122488,0.02546504,46504.0,46501.0,0.117559]
[1641356122489,0.02546504,46504.0,46501.0,0.167559]
[1641356122770,0.025,46504.0,46501.0,0.117559]
[1641356122967,0.025,46504.0,46501.0,0.063779]
[1641356123166,0.025,46504.0,46498.0,0.04993936]
[1641356123167,0.30987095,46503.0,46498.0,0.04993936]
[1641356123367,0.053787,46501.0,46498.0,0.04993936]
[1641356123568,0.3333739,46500.0,46498.0,0.04872046]
[1641356123769,0.26967418,46499.0,46498.0,0.04872046]
[1641356123968,0.0482,46499.0,46498.0,0.06542046]
[1641356124371,0.402903,46499.0,46498.0,0.06542046]
[1641356124571,0.45796241,46499.0,46498.0,0.06542046]
[1641356125271,0.45796241,46499.0,46498.0,0.04842046]
[1641356125971,0.74755038,46499.0,46498.0,0.05042046]
[1641356127283,0.73755038,46499.0,46498.0,0.04842046]
[1641356128084,0.76955038,46499.0,46498.0,0.05042046]
[1641356129081,0.81955038,46499.0,46498.0,0.05042046]
[1641356129287,0.81955038,46499.0,46498.0,0.04842046]
[1641356129288,0.96410232,46499.0,46498.0,0.04842046]
[1641356129483,1.61660232,46499.0,46498.0,0.04842046]
[1641356129681,1.33574694,46499.0,46498.0,0.04842046]
[1641356130083,1.34874694,46499.0,46498.0,0.04842046]
[1641356130334,1.36310694,46499.0,46498.0,0.04842046]
[1641356130730,0.053811,46496.0,46493.0,0.01238811]
[1641356131031,0.95845897,46494.0,46493.0,0.01238811]
[1641356131229,0.00123725,46492.0,46477.0,0.2855]
[1641356131430,1.32680294,46492.0,46471.0,0.9407]
[1641356131631,0.053814,46491.0,46474.0,0.053812]
[1641356131835,0.32245819,46475.0,46471.0,0.9407]
[1641356132131,0.32245819,46475.0,46470.0,0.107628]
[1641356132935,0.32245819,46475.0,46473.0,0.053814]
[1641356133330,0.37674072,46475.0,46473.0,0.053814]
[1641356133985,0.22046753,46475.0,46474.0,0.354703]
[1641356135385,0.22165555,46475.0,46474.0,0.354703]
[1641356136083,0.22165555,46475.0,46474.0,0.399703]
[1641356137285,0.22165555,46475.0,46474.0,0.354703]
[1641356137734,0.22118802,46475.0,46474.0,0.354703]
[1641356137936,0.22118802,46475.0,46473.0,0.053814]
[1641356138134,0.22118802,46475.0,46474.0,0.396703]
[1641356138633,0.22118802,46475.0,46474.0,0.042]
[1641356139435,0.22118802,46475.0,46474.0,0.404703]
[1641356139833,0.22118802,46475.0,46474.0,0.64162788]
[1641356140035,0.22118802,46475.0,46474.0,0.65762788]
[1641356140835,0.22118802,46475.0,46474.0,0.60762788]
[1641356141236,0.22118802,46475.0,46474.0,0.370703]
[1641356141485,0.22118802,46475.0,46474.0,0.354703]
[1641356142075,0.22118802,46475.0,46474.0,0.370703]
[1641356143375,0.22118802,46475.0,46474.0,0.354703]
[1641356143976,0.22118802,46475.0,46474.0,0.64193229]
[1641356144175,0.22118802,46475.0,46474.0,1.03893229]
[1641356144375,0.22118802,46475.0,46474.0,0.65893229]
[1641356145433,0.22118802,46475.0,46474.0,0.64193229]
[1641356145631,0.22118802,46475.0,46474.0,0.404703]
[1641356146032,0.22118802,46475.0,46474.0,0.424703]
[1641356146841,0.22118802,46475.0,46474.0,0.374703]
[1641356147431,0.22118802,46475.0,46474.0,0.354703]
[1641356148033,0.22118802,46475.0,46474.0,0.376703]
[1641356149384,0.22118802,46475.0,46474.0,0.354703]
[1641356149983,0.22118802,46475.0,46474.0,0.734703]
[1641356150189,0.22118802,46475.0,46474.0,0.94416248]
[1641356150392,0.22243583,46475.0,46474.0,0.94416248]
[1641356150588,0.22118802,46475.0,46474.0,0.377703]
[1641356151192,7.56e-06,46477.0,46475.0,2.25]
[1641356151395,7.56e-06,46477.0,46476.0,0.566773]
[1641356152186,7.56e-06,46477.0,46476.0,1.785568]
[1641356152589,0.37447929,46485.0,46476.0,1.785568]
[1641356152838,0.37447929,46485.0,46482.0,0.05379173]
[1641356153036,0.37447929,46485.0,46482.0,1.19379173]
[1641356153237,0.37230074,46485.0,46483.0,0.354703]
[1641356153436,0.37230074,46485.0,46484.0,0.24080373]
[1641356153637,0.30905732,46490.0,46484.0,0.49245573]
[1641356153836,0.30905732,46490.0,46485.0,0.354686]
[1641356154239,0.2966692,46490.0,46485.0,0.354686]
[1641356154838,0.38787146,46489.0,46485.0,0.354686]
[1641356155439,0.38787146,46489.0,46485.0,0.35443425]
[1641356156139,0.38787146,46489.0,46485.0,0.37443425]
[1641356157282,0.38832999,46489.0,46485.0,0.37443425]
[1641356158079,0.38832999,46489.0,46485.0,0.39243425]
[1641356158481,0.00045853,46489.0,46485.0,0.39243425]
[1641356159485,0.00045853,46489.0,46485.0,0.35443425]
[1641356159680,0.37632318,46488.0,46485.0,0.35443425]
[1641356160079,0.37632318,46488.0,46485.0,0.41643425]
[1641356161439,0.37632318,46488.0,46485.0,0.35443425]
[1641356161839,0.00045853,46489.0,46485.0,0.35443425]
[1641356162239,0.00045853,46489.0,46485.0,0.44643425]
[1641356162443,0.00045853,46489.0,46488.0,0.00128431]
[1641356162642,0.0001,46512.0,46488.0,2.26565417]
[1641356162841,0.0001,46512.0,46491.0,1.34]
[1641356163043,0.0001,46512.0,46505.0,0.00120909]
[1641356163246,0.0001,46512.0,46509.0,0.00122587]
[1641356163442,0.0001,46512.0,46510.0,0.354779]
[1641356164085,0.0001,46512.0,46510.0,0.369779]
[1641356164286,0.0001,46512.0,46510.0,1.155]
[1641356164486,0.0001,46512.0,46510.0,0.369779]
[1641356165488,0.0001,46512.0,46510.0,0.354779]
[1641356166088,0.0001,46512.0,46510.0,0.370779]
[1641356167192,0.0001,46512.0,46510.0,1.510779]
[1641356168046,0.0001,46512.0,46510.0,1.494779]
[1641356168244,0.0001,46512.0,46510.0,0.372779]
[1641356168846,0.0001,46512.0,46510.0,0.62299108]
[1641356169046,0.0001,46512.0,46510.0,0.372779]
[1641356169247,0.0001,46512.0,46510.0,0.62087313]
[1641356169446,0.0001,46512.0,46510.0,0.354779]
[1641356169850,0.0001,46512.0,46510.0,1.73918195]
[1641356170046,0.0001,46512.0,46510.0,1.494779]
[1641356170246,0.0001,46512.0,46510.0,1.513779]
[1641356171485,0.0001,46512.0,46510.0,1.494779]
[1641356172281,0.0001,46512.0,46510.0,1.513779]
[1641356172781,0.0001,46512.0,46510.0,1.713779]
[1641356172982,0.0001,46512.0,46510.0,1.513779]
[1641356173382,0.0001,46512.0,46510.0,1.494779]
[1641356173784,0.0001,46512.0,46510.0,1.694779]
[1641356174182,0.0001,46512.0,46510.0,1.513779]
[1641356175233,0.0001,46512.0,46510.0,1.713779]
[1641356175435,0.0001,46512.0,46510.0,1.694779]
[1641356176132,0.0001,46512.0,46510.0,1.713779]
[1641356176635,0.0001,46512.0,46510.0,1.513779]
[1641356177435,0.0001,46512.0,46510.0,1.694779]
[1641356178235,0.0001,46512.0,46510.0,1.715779]
[1641356179381,0.0001687,46511.0,46510.0,1.694779]
[1641356180182,0.0001687,46511.0,46510.0,1.719779]
[1641356181485,0.0001687,46511.0,46510.0,1.892979]
[1641356182284,4.87e-05,46511.0,46510.0,1.921979]
[1641356182486,0.0002,46515.0,46510.0,1.921979]
[1641356182487,0.0004,46527.0,46512.0,0.450917]
[1641356182737,0.0002,46523.0,46520.0,0.00125809]
[1641356182939,0.0125869,46524.0,46523.0,2.05]
[1641356183134,0.0005,46533.0,46527.0,0.25204244]
[1641356183332,0.0005,46533.0,46529.0,0.2]
[1641356183533,0.0005,46533.0,46529.0,1.880012]
[1641356183734,0.0001,46532.0,46530.0,0.354614]
[1641356183932,0.0001,46532.0,46531.0,1.34]
[1641356184134,0.0001,46532.0,46531.0,1.590801]
[1641356184332,0.0001,46532.0,46531.0,1.59208549]
[1641356184533,0.0001,46532.0,46531.0,1.69208549]
[1641356185330,0.0001,46532.0,46531.0,1.49208549]
[1641356185535,0.0001,46532.0,46531.0,1.69208549]
[1641356186333,0.0001,46532.0,46531.0,1.79356549]
[1641356187387,0.0001,46532.0,46531.0,1.84356549]
[1641356187689,0.0001,46532.0,46531.0,1.82656549]
[1641356188190,0.0001,46532.0,46531.0,1.84956549]
[1641356188787,0.0001,46532.0,46531.0,1.79956549]
[1641356189386,0.0001,46532.0,46531.0,1.84956549]
[1641356189885,0.0001801,46532.0,46531.0,1.84956549]
[1641356190086,0.0001801,46532.0,46531.0,1.82656549]
[1641356190331,0.0001801,46532.0,46531.0,1.84856549]
[1641356191533,0.0001801,46532.0,46531.0,1.74208549]
[1641356191733,0.0001801,46532.0,46531.0,1.540801]
[1641356191933,0.0001801,46532.0,46531.0,0.250801]
[1641356192136,0.0001801,46532.0,46529.0,0.2892]
[1641356192332,0.0001801,46532.0,46531.0,0.022]
[1641356192738,0.45576497,46532.0,46531.0,0.022]
[1641356192934,0.81054397,46532.0,46531.0,0.022]
[1641356193340,0.85874397,46532.0,46531.0,0.022]
[1641356193637,0.85874397,46532.0,46522.0,0.9377]
[1641356193836,0.63990566,46531.0,46522.0,0.9377]
[1641356194084,0.68810566,46531.0,46522.0,0.9377]
[1641356194284,0.23492386,46528.0,46526.0,0.022]
[1641356195486,0.354779,46527.0,46519.0,0.2977]
[1641356195684,0.053754,46527.0,46519.0,0.2977]
[1641356195888,0.28867795,46528.0,46519.0,0.2977]
[1641356196288,0.23492386,46528.0,46520.0,1.14]
[1641356196486,0.68036185,46524.0,46519.0,0.3267]
[1641356196686,0.31263293,46523.0,46520.0,0.354779]
[1641356196890,0.57828793,46523.0,46519.0,0.029]
[1641356197088,0.402979,46522.0,46519.0,0.029]
[1641356197388,0.00123139,46521.0,46519.0,0.029]
[1641356197587,0.00123139,46521.0,46506.0,0.13127855]
[1641356197588,0.402979,46520.0,46506.0,0.13127855]
[1641356197837,0.44907105,46508.0,46502.0,2.35320758]
[1641356198036,0.70983901,46508.0,46502.0,0.9644]
[1641356198235,0.44907105,46508.0,46506.0,0.06]
[1641356198938,0.053777,46507.0,46506.0,0.06]
[1641356199436,0.44907105,46508.0,46501.0,3.38609779]
[1641356199635,0.44907105,46508.0,46502.0,0.354779]
[1641356200035,0.053776,46507.0,46502.0,0.354779]
[1641356200234,0.44907105,46508.0,46502.0,0.426779]
[1641356200636,0.053775,46507.0,46502.0,0.426779]
[1641356201235,0.107551,46507.0,46502.0,0.426779]
[1641356201487,0.44907105,46508.0,46502.0,0.426779]
[1641356201685,0.44907105,46508.0,46502.0,0.354779]
[1641356201885,0.50284605,46508.0,46502.0,0.354779]
[1641356202286,0.44907105,46508.0,46502.0,0.437779]
[1641356202487,0.44907105,46508.0,46502.0,1.577779]
[1641356202686,0.29553189,46509.0,46502.0,1.577779]
[1641356202888,0.0482,46511.0,46502.0,1.577779]
[1641356203088,0.053,46517.0,46503.0,0.23810302]
[1641356203286,0.0048,46517.0,46506.0,0.0012089]
[1641356203488,0.053761,46520.0,46507.0,0.354734]
[1641356203691,0.47069798,46520.0,46508.0,0.23912223]
[1641356203887,0.3382873,46518.0,46509.0,1.390998]
[1641356204285,0.3382873,46518.0,46511.0,1.14]
[1641356204686,0.107518,46522.0,46512.0,0.23691395]
[1641356204887,0.0047,46527.0,46513.0,1.494779]
[1641356205089,0.22,46520.0,46512.0,0.00129039]
[1641356205333,0.00044965,46519.0,46512.0,0.00129039]
[1641356205532,0.053763,46518.0,46512.0,0.00129039]
[1641356205934,0.44333303,46519.0,46512.0,0.00129039]
[1641356206132,0.74652685,46519.0,46512.0,0.00129039]
[1641356206439,0.44333303,46519.0,46513.0,1.14]
[1641356206833,0.00044965,46519.0,46513.0,1.24]
[1641356207032,0.00044965,46519.0,46514.0,0.354779]
[1641356207433,0.2797463,46519.0,46514.0,1.494779]
[1641356207634,0.2797463,46519.0,46514.0,0.354779]
[1641356207833,0.427012,46518.0,46513.0,0.15]
[1641356208033,0.427012,46518.0,46513.0,1.14]
[1641356208233,0.00044965,46519.0,46513.0,1.164]